[Event "World Prestigious University 2019"]
[Site "Tianjin"]
[Date "2019.11.26"]
[Round "1.1"]
[White "Daniel, Karim Abbas"]
[Black "TannerAustin, McNamara"]
[Result "1-0"]
[WhiteElo "2251"]
[BlackElo "1983"]
[PlyCount "117"]
[EventDate "2019.11.26"]
[EventType "team-tourn"]
[EventCountry "CHN"]
[TimeControl "1500+10"]
[WhiteClock "0:00:45"]
[BlackClock "0:00:55"]

1. e4 {[%emt 0:00:00]} e5 {[%emt 0:00:00]} 2. Nf3 {[%emt 0:00:00]} Nc6 {[%emt 0:00:00]} 3. Bc4 {[%emt 0:00:00]} Nf6 {[%emt 0:00:05]} 4. d3 {[%emt 0:00:08]} Bc5 {[%emt 0:00:05]} 5. O-O {[%emt 0:01:25]} d6 {[%emt 0:02:11]} 6. c3 {[%emt 0:00:00]} O-O {[%emt 0:01:25]} 7. Bb3 {[%emt 0:00:00]} h6 {[%emt 0:00:19]} 8. h3 {[%emt 0:00:16]} Bb6 {[%emt 0:00:22]} 9. Nbd2 {[%emt 0:00:15]} Ne7 {[%emt 0:00:09]} 10. Re1 {[%emt 0:02:56]} Ng6 {[%emt 0:00:07]} 11. Nf1 {[%emt 0:01:13]} Be6 {[%emt 0:02:39]} 12. Ng3 {[%emt 0:02:05]} Qd7 {[%emt 0:02:22]} 13. Bxe6 {[%emt 0:05:52]} fxe6 {[%emt 0:00:24]} 14. d4 {[%emt 0:00:13]} exd4 {[%emt 0:01:10]} 15. cxd4 {[%emt 0:00:07]} Rae8 {[%emt 0:00:55]} 16. Be3 {[%emt 0:03:30]} e5 {[%emt 0:04:50]} 17. a4 {[%emt 0:01:30]} exd4 {[%emt 0:03:28]} 18. Bxd4 {[%emt 0:00:10]} Ne5 {[%emt 0:00:26]} 19. Nh4 {[%emt 0:01:52]} Bxd4 {[%emt 0:01:46]} 20. Qxd4 {[%emt 0:00:07]} Nc6 {[%emt 0:00:01]} 21. Qd2 {[%emt 0:02:04]} Qf7 {[%emt 0:00:12]} 22. b4 {[%emt 0:00:32]} Qc4 {[%emt 0:02:10]} 23. Rac1 {[%emt 0:00:44]} Qxb4 {[%emt 0:00:07]} 24. Qxb4 {[%emt 0:00:02]} Nxb4 {[%emt 0:00:01]} 25. Rxc7 {[%emt 0:00:02]} Rf7 {[%emt 0:00:01]} 26. Rxf7 {[%emt 0:00:10]} Kxf7 {[%emt 0:00:01]} 27. Nhf5 {[%emt 0:00:04]} Rd8 {[%emt 0:01:15]} 28. Rb1 {[%emt 0:00:01]} a5 {[%emt 0:00:04]} 29. Rd1 {[%emt 0:00:01]} d5 {[%emt 0:00:37]} 30. e5 {[%emt 0:00:18]} Nd7 {[%emt 0:00:01]} 31. Nd6+ {[%emt 0:00:08]} Ke6 {[%emt 0:00:11]} 32. f4 {[%emt 0:00:41]} Nc5 {[%emt 0:00:34]} 33. Ngf5 {[%emt 0:00:26]} Rxd6 {[%emt 0:01:45]} 34. Nxd6 {[%emt 0:00:06]} Nxa4 {[%emt 0:00:01]} 35. Nxb7 {[%emt 0:01:04]} Nc3 {[%emt 0:00:03]} 36. Rf1 {[%emt 0:00:08]} a4 {[%emt 0:00:08]} 37. Nc5+ {[%emt 0:00:02]} Ke7 {[%emt 0:00:01]} 38. Kf2 {[%emt 0:02:36]} a3 {[%emt 0:00:03]} 39. Rc1 {[%emt 0:00:10]} d4 {[%emt 0:00:03]} 40. Kf3 {[%emt 0:00:14]} a2 {[%emt 0:00:40]} 41. Nb3 {[%emt 0:00:14]} Nd3 {[%emt 0:00:04]} 42. Ra1 {[%emt 0:00:11]} Nb4 {[%emt 0:00:47]} 43. Nxd4 {[%emt 0:00:02]} Nb1 {[%emt 0:00:01]} 44. Nb3 {[%emt 0:00:14]} Ke6 {[%emt 0:00:16]} 45. Nc1 {[%emt 0:00:10]} Nc3 {[%emt 0:00:02]} 46. g4 {[%emt 0:00:14]} Kd5 {[%emt 0:00:10]} 47. Ne2 {[%emt 0:00:18]} Nb1 {[%emt 0:00:08]} 48. Nc1 {[%emt 0:00:06]} Nc3 {[%emt 0:00:02]} 49. Nxa2 {[%emt 0:00:05]} Nbxa2 {[%emt 0:00:04]} 50. Re1 {[%emt 0:00:03]} Ke6 {[%emt 0:00:14]} 51. f5+ {[%emt 0:00:02]} Ke7 {[%emt 0:00:01]} 52. Ra1 {[%emt 0:00:12]} Kd7 {[%emt 0:00:32]} 53. h4 {[%emt 0:00:05]} Kc6 {[%emt 0:00:14]} 54. f6 {[%emt 0:00:08]} gxf6 {[%emt 0:00:13]} 55. exf6 {[%emt 0:00:01]} Kd7 {[%emt 0:00:14]} 56. Re1 {[%emt 0:00:08]} Nb5 {[%emt 0:00:08]} 57. f7 {[%emt 0:00:11]} Nd4+ {[%emt 0:00:00]} 58. Kg2 {[%emt 0:00:17]} Ne6 {[%emt 0:00:03]} 59. Rxe6 {[%emt 0:00:02]} 1-0

[Event "World Prestigious University 2019"]
[Site "Tianjin"]
[Date "2019.11.26"]
[Round "1.2"]
[White "Lei, Sean"]
[Black "Mihov, Filip"]
[Result "0-1"]
[WhiteElo "1895"]
[BlackElo "2191"]
[PlyCount "84"]
[EventDate "2019.11.26"]
[EventType "team-tourn"]
[EventCountry "CHN"]
[TimeControl "1500+10"]
[WhiteClock "0:04:01"]
[BlackClock "0:00:20"]

1. e4 {[%emt 0:00:00]} e6 {[%emt 0:00:00]} 2. d4 {[%emt 0:00:00]} d5 {[%emt 0:00:01]} 3. Nc3 {[%emt 0:00:04]} dxe4 {[%emt 0:00:19]} 4. Nxe4 {[%emt 0:00:03]} Nf6 {[%emt 0:00:02]} 5. Bg5 {[%emt 0:00:05]} Be7 {[%emt 0:00:03]} 6. Bxf6 {[%emt 0:00:03]} gxf6 {[%emt 0:00:03]} 7. Nf3 {[%emt 0:00:05]} f5 {[%emt 0:00:14]} 8. Ned2 {[%emt 0:00:23]} b6 {[%emt 0:01:21]} 9. Bb5+ {[%emt 0:00:23]} c6 {[%emt 0:00:10]} 10. Bd3 {[%emt 0:00:35]} Nd7 {[%emt 0:00:22]} 11. Ne5 {[%emt 0:00:34]} Nxe5 {[%emt 0:00:23]} 12. dxe5 {[%emt 0:00:04]} Qd4 {[%emt 0:01:45]} 13. Qe2 {[%emt 0:00:03]} Qxb2 {[%emt 0:00:30]} 14. O-O {[%emt 0:00:04]} Bb7 {[%emt 0:00:52]} 15. Nc4 {[%emt 0:00:21]} Qc3 {[%emt 0:00:09]} 16. a4 {[%emt 0:00:12]} Rd8 {[%emt 0:01:35]} 17. Rab1 {[%emt 0:02:47]} Qd4 {[%emt 0:01:28]} 18. Rfd1 {[%emt 0:03:39]} Qg4 {[%emt 0:00:03]} 19. f3 {[%emt 0:00:48]} Qg5 {[%emt 0:00:03]} 20. Nd6+ {[%emt 0:04:08]} Bxd6 {[%emt 0:00:58]} 21. exd6 {[%emt 0:00:01]} Qf4 {[%emt 0:00:34]} 22. Bc4 {[%emt 0:02:14]} Rxd6 {[%emt 0:02:58]} 23. g3 {[%emt 0:00:14]} Rxd1+ {[%emt 0:00:02]} 24. Rxd1 {[%emt 0:00:02]} Qh6 {[%emt 0:00:01]} 25. Qe5 {[%emt 0:01:03]} O-O {[%emt 0:00:18]} 26. Qc7 {[%emt 0:02:39]} Ba8 {[%emt 0:01:14]} 27. Rd8 {[%emt 0:02:35]} c5 {[%emt 0:03:29]} 28. f4 {[%emt 0:00:39]} Be4 {[%emt 0:01:35]} 29. Qe7 {[%emt 0:02:24]} Rxd8 {[%emt 0:00:02]} 30. Qxd8+ {[%emt 0:00:01]} Kg7 {[%emt 0:00:01]} 31. c3 {[%emt 0:01:11]} Qf6 {[%emt 0:00:23]} 32. Qd2 {[%emt 0:00:06]} h6 {[%emt 0:00:15]} 33. Kf2 {[%emt 0:00:06]} Qe7 {[%emt 0:00:23]} 34. Be2 {[%emt 0:01:04]} Qb7 {[%emt 0:01:02]} 35. Qd1 {[%emt 0:01:09]} Qd5 {[%emt 0:00:17]} 36. Qc1 {[%emt 0:00:08]} Bd3 {[%emt 0:03:17]} 37. Bf3 {[%emt 0:00:07]} Qa2+ {[%emt 0:00:29]} 38. Ke3 {[%emt 0:00:26]} Bc4 {[%emt 0:00:26]} 39. g4 {[%emt 0:00:43]} fxg4 {[%emt 0:00:24]} 40. Qg1 {[%emt 0:00:14]} h5 {[%emt 0:00:22]} 41. Bxg4 {[%emt 0:00:08]} hxg4 {[%emt 0:00:06]} 42. Qxg4+ {[%emt 0:00:05]} Kf8 {[%emt 0:00:00]} 0-1

[Event "World Prestigious University 2019"]
[Site "Tianjin"]
[Date "2019.11.26"]
[Round "1.4"]
[White "Grigory, Oparin"]
[Black "Li, Ethan"]
[Result "1-0"]
[WhiteElo "2660"]
[BlackElo "2209"]
[PlyCount "93"]
[EventDate "2019.11.26"]
[EventType "team-tourn"]
[EventCountry "CHN"]
[TimeControl "1500+10"]
[WhiteClock "0:01:13"]
[BlackClock "0:05:11"]

1. d4 {[%emt 0:00:00]} Nf6 {[%emt 0:00:01]} 2. c4 {[%emt 0:00:00]} e6 {[%emt 0:00:03]} 3. Nf3 {[%emt 0:00:00]} d5 {[%emt 0:00:02]} 4. g3 {[%emt 0:00:00]} dxc4 {[%emt 0:00:03]} 5. Bg2 {[%emt 0:00:00]} Bd7 {[%emt 0:00:02]} 6. Ne5 {[%emt 0:00:08]} Bc6 {[%emt 0:00:02]} 7. Nxc6 {[%emt 0:00:03]} Nxc6 {[%emt 0:00:03]} 8. O-O {[%emt 0:00:07]} Qd7 {[%emt 0:00:05]} 9. e3 {[%emt 0:00:12]} O-O-O {[%emt 0:00:18]} 10. Nd2 {[%emt 0:01:20]} e5 {[%emt 0:04:17]} 11. Nxc4 {[%emt 0:00:02]} exd4 {[%emt 0:00:40]} 12. Qa4 {[%emt 0:00:03]} Kb8 {[%emt 0:00:34]} 13. Bxc6 {[%emt 0:00:26]} Qxc6 {[%emt 0:00:09]} 14. Qxc6 {[%emt 0:00:02]} bxc6 {[%emt 0:00:02]} 15. Ne5 {[%emt 0:00:02]} Rd5 {[%emt 0:00:36]} 16. Nxc6+ {[%emt 0:00:11]} Kb7 {[%emt 0:00:02]} 17. Nxd4 {[%emt 0:00:03]} Bc5 {[%emt 0:00:11]} 18. Nf3 {[%emt 0:02:28]} Rhd8 {[%emt 0:01:38]} 19. b4 {[%emt 0:00:20]} Be7 {[%emt 0:00:52]} 20. Bb2 {[%emt 0:01:15]} Ne8 {[%emt 0:00:29]} 21. Rab1 {[%emt 0:01:02]} Bf6 {[%emt 0:00:48]} 22. Bxf6 {[%emt 0:00:30]} Nxf6 {[%emt 0:00:03]} 23. Rfc1 {[%emt 0:00:03]} Ng4 {[%emt 0:01:24]} 24. Nd4 {[%emt 0:00:28]} Ne5 {[%emt 0:00:02]} 25. Kg2 {[%emt 0:00:33]} g6 {[%emt 0:01:37]} 26. a4 {[%emt 0:00:32]} h5 {[%emt 0:01:06]} 27. b5 {[%emt 0:00:21]} Nd7 {[%emt 0:00:55]} 28. Rc6 {[%emt 0:01:40]} Rc5 {[%emt 0:02:38]} 29. a5 {[%emt 0:00:40]} Ka8 {[%emt 0:01:47]} 30. Ra6 {[%emt 0:00:04]} Nb8 {[%emt 0:01:17]} 31. Rf6 {[%emt 0:00:03]} Rd7 {[%emt 0:00:43]} 32. h4 {[%emt 0:02:35]} Re7 {[%emt 0:01:14]} 33. Rd1 {[%emt 0:01:45]} a6 {[%emt 0:01:23]} 34. bxa6 {[%emt 0:00:21]} Rxa5 {[%emt 0:00:08]} 35. Rb1 {[%emt 0:00:05]} Rc5 {[%emt 0:00:36]} 36. Rb2 {[%emt 0:02:59]} Ka7 {[%emt 0:01:07]} 37. Kf1 {[%emt 0:02:55]} Rd7 {[%emt 0:02:07]} 38. Ke2 {[%emt 0:00:23]} Ka8 {[%emt 0:00:42]} 39. Kf3 {[%emt 0:02:08]} Re7 {[%emt 0:00:21]} 40. Ke2 {[%emt 0:00:57]} Rd7 {[%emt 0:00:02]} 41. f3 {[%emt 0:00:01]} Ka7 {[%emt 0:00:09]} 42. g4 {[%emt 0:00:25]} hxg4 {[%emt 0:00:18]} 43. fxg4 {[%emt 0:00:03]} c6 {[%emt 0:00:38]} 44. Rb7+ {[%emt 0:00:18]} Rxb7 {[%emt 0:00:02]} 45. axb7 {[%emt 0:00:02]} Kxb7 {[%emt 0:00:10]} 46. Rxf7+ {[%emt 0:00:02]} Kb6 {[%emt 0:00:01]} 47. Rg7 {[%emt 0:00:02]} 1-0

[Event "World Prestigious University 2019"]
[Site "Tianjin"]
[Date "2019.11.26"]
[Round "1.7"]
[White "Fernandez, Daniel Howard"]
[Black "Bibby, Simon"]
[Result "1/2-1/2"]
[WhiteElo "2444"]
[BlackElo "2167"]
[PlyCount "68"]
[EventDate "2019.11.26"]
[EventType "team-tourn"]
[EventCountry "CHN"]
[TimeControl "1500+10"]
[WhiteClock "0:02:11"]
[BlackClock "0:01:27"]

1. e4 {[%emt 0:00:00]} c5 {[%emt 0:00:00]} 2. Nf3 {[%emt 0:00:00]} Nc6 {[%emt 0:00:00]} 3. Bb5 {[%emt 0:00:00]} g6 {[%emt 0:00:00]} 4. O-O {[%emt 0:00:01]} Bg7 {[%emt 0:00:06]} 5. Re1 {[%emt 0:00:15]} e5 {[%emt 0:00:27]} 6. Bxc6 {[%emt 0:01:41]} dxc6 {[%emt 0:00:07]} 7. d3 {[%emt 0:00:12]} Bg4 {[%emt 0:04:51]} 8. Nbd2 {[%emt 0:01:04]} Nf6 {[%emt 0:00:19]} 9. h3 {[%emt 0:00:15]} Bxf3 {[%emt 0:00:02]} 10. Nxf3 {[%emt 0:00:52]} Qc7 {[%emt 0:02:05]} 11. Be3 {[%emt 0:01:36]} b6 {[%emt 0:00:02]} 12. Qd2 {[%emt 0:02:44]} h6 {[%emt 0:03:25]} 13. a4 {[%emt 0:00:50]} a5 {[%emt 0:00:33]} 14. Rad1 {[%emt 0:01:40]} Rd8 {[%emt 0:00:42]} 15. Qc1 {[%emt 0:00:19]} g5 {[%emt 0:02:56]} 16. h4 {[%emt 0:04:54]} g4 {[%emt 0:01:07]} 17. Nd2 {[%emt 0:00:02]} Nh5 {[%emt 0:01:01]} 18. g3 {[%emt 0:02:08]} Nf4 {[%emt 0:01:49]} 19. Nf1 {[%emt 0:00:30]} Ne6 {[%emt 0:00:32]} 20. c3 {[%emt 0:01:32]} h5 {[%emt 0:00:38]} 21. Bg5 {[%emt 0:00:43]} f6 {[%emt 0:00:37]} 22. Be3 {[%emt 0:00:19]} Kf7 {[%emt 0:02:06]} 23. Qc2 {[%emt 0:00:09]} Rd6 {[%emt 0:01:05]} 24. Bc1 {[%emt 0:01:06]} Rhd8 {[%emt 0:00:08]} 25. Ne3 {[%emt 0:01:08]} Qd7 {[%emt 0:00:27]} 26. Nf5 {[%emt 0:00:35]} Rxd3 {[%emt 0:00:10]} 27. Rxd3 {[%emt 0:00:27]} Qxd3 {[%emt 0:00:01]} 28. Qb3 {[%emt 0:00:46]} Bf8 {[%emt 0:01:32]} 29. Qxb6 {[%emt 0:00:33]} c4 {[%emt 0:00:05]} 30. Qxc6 {[%emt 0:01:30]} Bc5 {[%emt 0:00:42]} 31. Qb7+ {[%emt 0:00:45]} Rd7 {[%emt 0:00:03]} 32. Qc8 {[%emt 0:00:21]} Rd8 {[%emt 0:00:44]} 33. Qb7+ {[%emt 0:00:07]} Rd7 {[%emt 0:00:05]} 34. Qc8 {[%emt 0:00:09]} Rd8 {[%emt 0:00:02]} 1/2-1/2

[Event "World Prestigious University 2019"]
[Site "Tianjin"]
[Date "2019.11.26"]
[Round "1.8"]
[White "Hirao, Satoshi"]
[Black "Behar, Joshua"]
[Result "1/2-1/2"]
[WhiteElo "1958"]
[BlackElo "1974"]
[PlyCount "90"]
[EventDate "2019.11.26"]
[EventType "team-tourn"]
[EventCountry "CHN"]
[TimeControl "1500+10"]
[WhiteClock "0:00:16"]
[BlackClock "0:00:48"]

1. e4 {[%emt 0:00:00]} e6 {[%emt 0:00:00]} 2. d4 {[%emt 0:00:00]} d5 {[%emt 0:00:00]} 3. Nc3 {[%emt 0:00:00]} Nf6 {[%emt 0:00:00]} 4. Bg5 {[%emt 0:00:01]} dxe4 {[%emt 0:00:00]} 5. Nxe4 {[%emt 0:00:02]} Be7 {[%emt 0:00:00]} 6. Bxf6 {[%emt 0:00:10]} gxf6 {[%emt 0:00:00]} 7. Nf3 {[%emt 0:00:16]} Nd7 {[%emt 0:00:35]} 8. Qd2 {[%emt 0:02:29]} b6 {[%emt 0:01:09]} 9. O-O-O {[%emt 0:01:43]} Bb7 {[%emt 0:00:10]} 10. Qf4 {[%emt 0:01:48]} f5 {[%emt 0:01:34]} 11. Nc3 {[%emt 0:01:28]} Bd6 {[%emt 0:03:49]} 12. Qe3 {[%emt 0:02:49]} O-O {[%emt 0:01:12]} 13. Kb1 {[%emt 0:02:15]} Qf6 {[%emt 0:02:19]} 14. Nb5 {[%emt 0:01:19]} Rfd8 {[%emt 0:01:21]} 15. Bd3 {[%emt 0:04:16]} Kh8 {[%emt 0:01:14]} 16. Rhe1 {[%emt 0:00:55]} Rg8 {[%emt 0:00:56]} 17. g3 {[%emt 0:01:39]} f4 {[%emt 0:01:51]} 18. Qe2 {[%emt 0:02:05]} fxg3 {[%emt 0:01:56]} 19. Ne5 {[%emt 0:00:01]} Bxe5 {[%emt 0:01:15]} 20. dxe5 {[%emt 0:00:03]} Qxf2 {[%emt 0:00:11]} 21. Qh5 {[%emt 0:01:54]} Qxh2 {[%emt 0:01:25]} 22. Qxf7 {[%emt 0:00:19]} Rg7 {[%emt 0:00:37]} 23. Qxe6 {[%emt 0:00:02]} g2 {[%emt 0:01:11]} 24. Rg1 {[%emt 0:00:21]} Qxe5 {[%emt 0:01:14]} 25. Qh3 {[%emt 0:00:02]} Nc5 {[%emt 0:01:04]} 26. Nc3 {[%emt 0:01:25]} Nxd3 {[%emt 0:00:26]} 27. cxd3 {[%emt 0:00:04]} Re8 {[%emt 0:00:13]} 28. Ne4 {[%emt 0:00:38]} Bxe4 {[%emt 0:00:33]} 29. dxe4 {[%emt 0:00:01]} Qxe4+ {[%emt 0:00:01]} 30. Ka1 {[%emt 0:00:02]} Qe2 {[%emt 0:00:12]} 31. Qc3 {[%emt 0:01:07]} Kg8 {[%emt 0:01:07]} 32. Qb3+ {[%emt 0:00:13]} Kf8 {[%emt 0:01:35]} 33. a3 {[%emt 0:00:08]} c5 {[%emt 0:00:37]} 34. Qd5 {[%emt 0:00:09]} Rg4 {[%emt 0:00:31]} 35. Qf5+ {[%emt 0:00:11]} Kg8 {[%emt 0:00:05]} 36. Rd7 {[%emt 0:00:34]} Rg7 {[%emt 0:00:22]} 37. Rxg7+ {[%emt 0:00:12]} Kxg7 {[%emt 0:00:01]} 38. Qg5+ {[%emt 0:00:01]} Kh8 {[%emt 0:00:02]} 39. Rxg2 {[%emt 0:00:18]} Qe1+ {[%emt 0:00:01]} 40. Ka2 {[%emt 0:00:02]} Qe6+ {[%emt 0:00:01]} 41. Ka1 {[%emt 0:00:02]} Qe1+ {[%emt 0:00:02]} 42. Ka2 {[%emt 0:00:00]} Qe5 {[%emt 0:00:29]} 43. Qd2 {[%emt 0:00:09]} Qe6+ {[%emt 0:00:03]} 44. b3 {[%emt 0:00:04]} a5 {[%emt 0:00:22]} 45. a4 {[%emt 0:00:25]} Qe5 {[%emt 0:00:28]} 1/2-1/2

[Event "World Prestigious University 2019"]
[Site "Tianjin"]
[Date "2019.11.26"]
[Round "1.10"]
[White "Theodorou, Nikolas"]
[Black "Wang, Yue"]
[Result "1/2-1/2"]
[WhiteElo "2555"]
[BlackElo "2674"]
[PlyCount "35"]
[EventDate "2019.11.26"]
[EventType "team-tourn"]
[EventCountry "CHN"]
[TimeControl "1500+10"]
[WhiteClock "0:12:27"]
[BlackClock "0:16:02"]

1. d4 {[%emt 0:00:00]} Nf6 {[%emt 0:00:00]} 2. c4 {[%emt 0:00:00]} e6 {[%emt 0:00:00]} 3. g3 {[%emt 0:00:00]} d5 {[%emt 0:00:07]} 4. Bg2 {[%emt 0:00:01]} dxc4 {[%emt 0:00:07]} 5. Nf3 {[%emt 0:00:06]} c6 {[%emt 0:00:05]} 6. Ne5 {[%emt 0:00:03]} Bb4+ {[%emt 0:00:04]} 7. Nc3 {[%emt 0:00:02]} Nd5 {[%emt 0:00:14]} 8. O-O {[%emt 0:00:04]} O-O {[%emt 0:01:21]} 9. Qc2 {[%emt 0:00:47]} Nb6 {[%emt 0:04:09]} 10. Ne4 {[%emt 0:01:48]} f5 {[%emt 0:04:40]} 11. Ng5 {[%emt 0:02:31]} Qxd4 {[%emt 0:00:06]} 12. Bf4 {[%emt 0:00:33]} Be7 {[%emt 0:00:10]} 13. Ngf3 {[%emt 0:00:59]} Qc5 {[%emt 0:00:49]} 14. Be3 {[%emt 0:00:23]} Qb4 {[%emt 0:00:36]} 15. Bd2 {[%emt 0:00:43]} Qc5 {[%emt 0:00:30]} 16. Be3 {[%emt 0:00:07]} Qb4 {[%emt 0:00:55]} 17. Bd2 {[%emt 0:01:04]} Qc5 {[%emt 0:01:30]} 18. Be3 {[%emt 0:02:47]} 1/2-1/2

[Event "World Prestigious University 2019"]
[Site "Tianjin"]
[Date "2019.11.26"]
[Round "1.11"]
[White "Li, Yankai"]
[Black "Chandra, Akshat"]
[Result "0-1"]
[WhiteElo "2432"]
[BlackElo "2524"]
[PlyCount "148"]
[EventDate "2019.11.26"]
[EventType "team-tourn"]
[EventCountry "CHN"]
[TimeControl "1500+10"]
[WhiteClock "0:01:02"]
[BlackClock "0:00:40"]

1. e4 {[%emt 0:00:00]} e5 {[%emt 0:00:00]} 2. Nf3 {[%emt 0:00:00]} Nc6 {[%emt 0:00:00]} 3. Bb5 {[%emt 0:00:51]} Nf6 {[%emt 0:00:36]} 4. Nc3 {[%emt 0:00:02]} Bb4 {[%emt 0:01:57]} 5. O-O {[%emt 0:00:02]} O-O {[%emt 0:00:03]} 6. d3 {[%emt 0:00:01]} Bxc3 {[%emt 0:00:10]} 7. bxc3 {[%emt 0:00:01]} d6 {[%emt 0:00:05]} 8. Re1 {[%emt 0:00:33]} h6 {[%emt 0:01:23]} 9. h3 {[%emt 0:00:16]} Bd7 {[%emt 0:00:06]} 10. d4 {[%emt 0:00:28]} Re8 {[%emt 0:00:35]} 11. Bd3 {[%emt 0:00:23]} Na5 {[%emt 0:00:57]} 12. c4 {[%emt 0:02:16]} exd4 {[%emt 0:03:56]} 13. Nxd4 {[%emt 0:00:24]} c5 {[%emt 0:00:26]} 14. Nf5 {[%emt 0:02:43]} Bxf5 {[%emt 0:00:20]} 15. exf5 {[%emt 0:00:02]} Nc6 {[%emt 0:02:32]} 16. Bb2 {[%emt 0:00:07]} Ne5 {[%emt 0:00:07]} 17. Bf1 {[%emt 0:00:49]} Qc7 {[%emt 0:00:58]} 18. Qd2 {[%emt 0:02:57]} Rad8 {[%emt 0:00:16]} 19. Qf4 {[%emt 0:01:13]} Re7 {[%emt 0:00:25]} 20. Re3 {[%emt 0:00:39]} Rde8 {[%emt 0:00:31]} 21. Rae1 {[%emt 0:00:19]} Kf8 {[%emt 0:00:25]} 22. Bc3 {[%emt 0:01:02]} Ned7 {[%emt 0:00:28]} 23. Rxe7 {[%emt 0:02:37]} Rxe7 {[%emt 0:00:02]} 24. Rxe7 {[%emt 0:00:02]} Kxe7 {[%emt 0:00:01]} 25. g4 {[%emt 0:00:06]} Ne5 {[%emt 0:04:43]} 26. Qe3 {[%emt 0:01:05]} Kf8 {[%emt 0:01:39]} 27. f4 {[%emt 0:00:00]} Nc6 {[%emt 0:01:41]} 28. g5 {[%emt 0:00:00]} hxg5 {[%emt 0:00:23]} 29. fxg5 {[%emt 0:00:00]} Nd7 {[%emt 0:03:55]} 30. Bg2 {[%emt 0:01:46]} Nde5 {[%emt 0:00:00]} 31. Bd5 {[%emt 0:03:39]} Ne7 {[%emt 0:00:00]} 32. f6 {[%emt 0:00:14]} gxf6 {[%emt 0:00:16]} 33. gxf6 {[%emt 0:00:14]} Nxd5 {[%emt 0:00:01]} 34. cxd5 {[%emt 0:01:01]} Ng6 {[%emt 0:00:02]} 35. h4 {[%emt 0:00:10]} Qd7 {[%emt 0:00:44]} 36. Qg3 {[%emt 0:02:06]} Qf5 {[%emt 0:00:13]} 37. Qxd6+ {[%emt 0:00:38]} Kg8 38. Qb8+ {[%emt 0:00:29]} Kh7 {[%emt 0:00:17]} 39. Qxb7 {[%emt 0:00:11]} Qg4+ {[%emt 0:00:10]} 40. Kf2 {[%emt 0:00:02]} Qxh4+ {[%emt 0:00:09]} 41. Ke3 {[%emt 0:00:33]} Qf4+ {[%emt 0:00:19]} 42. Ke2 {[%emt 0:00:14]} Qc4+ {[%emt 0:00:35]} 43. Kd2 {[%emt 0:00:13]} Qf4+ {[%emt 0:00:01]} 44. Kd1 {[%emt 0:00:22]} Qf3+ {[%emt 0:00:03]} 45. Kc1 {[%emt 0:00:09]} Qxc3 {[%emt 0:00:20]} 46. Qxf7+ {[%emt 0:00:01]} Kh6 {[%emt 0:00:01]} 47. Qe6 {[%emt 0:00:29]} Nf4 {[%emt 0:00:36]} 48. Qf5 {[%emt 0:00:30]} Qe1+ {[%emt 0:00:11]} 49. Kb2 {[%emt 0:00:02]} Qb4+ {[%emt 0:00:01]} 50. Kc1 {[%emt 0:00:11]} Ne2+ {[%emt 0:00:23]} 51. Kd1 {[%emt 0:00:01]} Nc3+ {[%emt 0:00:01]} 52. Kc1 {[%emt 0:00:32]} Nxa2+ {[%emt 0:00:07]} 53. Kd1 {[%emt 0:00:00]} Nc3+ {[%emt 0:00:02]} 54. Kc1 {[%emt 0:00:00]} Ne2+ {[%emt 0:00:30]} 55. Kd1 {[%emt 0:00:00]} Nc3+ {[%emt 0:00:02]} 56. Kc1 {[%emt 0:00:00]} Qd4 {[%emt 0:00:22]} 57. Qf3 {[%emt 0:00:59]} Na2+ {[%emt 0:00:07]} 58. Kb1 {[%emt 0:00:01]} Nc3+ {[%emt 0:00:02]} 59. Kc1 {[%emt 0:00:02]} Na2+ {[%emt 0:00:15]} 60. Kb1 {[%emt 0:00:01]} Nc3+ {[%emt 0:00:01]} 61. Kc1 {[%emt 0:00:09]} Ne4 {[%emt 0:00:21]} 62. Qh3+ {[%emt 0:01:00]} Kg6 {[%emt 0:00:03]} 63. Qg4+ {[%emt 0:00:02]} Kxf6 {[%emt 0:00:04]} 64. Qf4+ {[%emt 0:00:09]} Kg6 {[%emt 0:00:10]} 65. Qg4+ {[%emt 0:00:04]} Ng5 {[%emt 0:00:21]} 66. Qd7 {[%emt 0:00:11]} Qa1+ {[%emt 0:00:04]} 67. Kd2 {[%emt 0:00:01]} Qd4+ {[%emt 0:00:13]} 68. Kc1 {[%emt 0:00:01]} Nf7 {[%emt 0:00:15]} 69. Qe6+ {[%emt 0:00:30]} Kg7 {[%emt 0:00:01]} 70. Qd7 {[%emt 0:00:33]} a5 {[%emt 0:00:05]} 71. Kb1 {[%emt 0:00:10]} a4 {[%emt 0:00:04]} 72. Ka2 {[%emt 0:00:00]} Qc4+ {[%emt 0:00:00]} 73. Ka3 {[%emt 0:00:01]} Qb4+ {[%emt 0:00:03]} 74. Ka2 {[%emt 0:00:01]} a3 {[%emt 0:00:03]} 0-1

[Event "World Prestigious University 2019"]
[Site "Tianjin"]
[Date "2019.11.26"]
[Round "1.12"]
[White "Derakhshani, Dorsa"]
[Black "Xiao, Yiyi"]
[Result "1-0"]
[WhiteElo "2277"]
[BlackElo "2306"]
[PlyCount "91"]
[EventDate "2019.11.26"]
[EventType "team-tourn"]
[EventCountry "CHN"]
[TimeControl "1500+10"]
[WhiteClock "0:00:42"]
[BlackClock "0:01:11"]

1. e4 {[%emt 0:00:00]} e5 {[%emt 0:00:00]} 2. Nf3 {[%emt 0:00:00]} Nc6 {[%emt 0:00:00]} 3. Nc3 {[%emt 0:00:02]} Nf6 {[%emt 0:00:03]} 4. d4 {[%emt 0:00:03]} Bb4 {[%emt 0:01:00]} 5. Nxe5 {[%emt 0:00:06]} Qe7 {[%emt 0:00:02]} 6. Qd3 {[%emt 0:00:18]} Nxe5 {[%emt 0:00:37]} 7. dxe5 {[%emt 0:00:04]} Qxe5 {[%emt 0:00:02]} 8. Bd2 {[%emt 0:00:41]} O-O {[%emt 0:02:16]} 9. f3 {[%emt 0:06:40]} d6 {[%emt 0:01:25]} 10. O-O-O {[%emt 0:00:13]} Bd7 {[%emt 0:04:58]} 11. g4 {[%emt 0:01:28]} Bc6 {[%emt 0:00:33]} 12. Kb1 {[%emt 0:01:36]} a5 {[%emt 0:03:20]} 13. h4 {[%emt 0:03:14]} Rfe8 {[%emt 0:02:13]} 14. g5 {[%emt 0:06:41]} Nh5 {[%emt 0:00:42]} 15. Bh3 {[%emt 0:00:55]} Nf4 {[%emt 0:04:57]} 16. Bxf4 {[%emt 0:00:38]} Qxf4 {[%emt 0:00:02]} 17. Ne2 {[%emt 0:00:32]} Qe5 {[%emt 0:00:11]} 18. Nd4 {[%emt 0:00:59]} Bc5 {[%emt 0:00:10]} 19. Nf5 {[%emt 0:01:31]} a4 {[%emt 0:01:09]} 20. a3 {[%emt 0:00:32]} Ra6 {[%emt 0:00:17]} 21. Ne3 {[%emt 0:01:04]} Bb5 {[%emt 0:01:25]} 22. Qxb5 {[%emt 0:00:48]} Rb6 {[%emt 0:01:01]} 23. Nc4 {[%emt 0:00:02]} Rxb5 {[%emt 0:00:02]} 24. Nxe5 {[%emt 0:00:01]} Rxe5 {[%emt 0:00:02]} 25. Bd7 {[%emt 0:00:15]} c6 {[%emt 0:00:26]} 26. Rd3 {[%emt 0:00:02]} Kf8 {[%emt 0:00:23]} 27. Kc1 {[%emt 0:00:13]} Ke7 {[%emt 0:00:04]} 28. Bf5 {[%emt 0:00:09]} g6 {[%emt 0:01:07]} 29. f4 {[%emt 0:00:11]} gxf5 {[%emt 0:00:06]} 30. fxe5 {[%emt 0:00:02]} fxe4 {[%emt 0:00:01]} 31. exd6+ {[%emt 0:00:04]} Bxd6 {[%emt 0:00:01]} 32. Re1 {[%emt 0:00:24]} Bf4+ {[%emt 0:00:45]} 33. Kd1 {[%emt 0:00:34]} f5 {[%emt 0:00:19]} 34. gxf6+ {[%emt 0:00:01]} Kxf6 {[%emt 0:00:01]} 35. Rxe4 {[%emt 0:00:02]} Kf5 {[%emt 0:00:19]} 36. Rxa4 {[%emt 0:00:08]} Be5 {[%emt 0:00:30]} 37. b3 {[%emt 0:00:15]} h5 {[%emt 0:00:11]} 38. Rf3+ {[%emt 0:00:06]} Kg6 {[%emt 0:00:03]} 39. Re4 {[%emt 0:00:07]} Rd5+ {[%emt 0:00:14]} 40. Rd3 {[%emt 0:00:07]} Kf5 {[%emt 0:00:17]} 41. Rb4 {[%emt 0:00:17]} Rxd3+ {[%emt 0:00:13]} 42. cxd3 {[%emt 0:00:02]} b5 {[%emt 0:00:05]} 43. a4 {[%emt 0:00:12]} Bc3 {[%emt 0:00:13]} 44. Re4 {[%emt 0:00:05]} bxa4 {[%emt 0:00:01]} 45. bxa4 {[%emt 0:00:01]} c5 {[%emt 0:00:02]} 46. Ke2 {[%emt 0:00:04]} 1-0